[Event "World Junior U20 Girls 2018"]
[Site "Gebze"]
[Date "2018.09.06"]
[Round "2"]
[White "Aubert, Laurane"]
[Black "Alinasab, Mobina"]
[Result "1/2-1/2"]
[ECO "C01"]
[WhiteElo "1970"]
[BlackElo "2261"]
[Annotator "NA"]
[PlyCount "121"]
[EventDate "2018.09.05"]
[EventType "swiss"]
[EventCountry "TUR"]
[SourceTitle "playchess.com"]
[Source "ChessBase"]
[SourceQuality "1"]
[TimeControl "40/5400+30:1800+30"]

1. e4 {[%emt 0:00:30]} e6 {[%emt 0:00:30]} 2. d4 {[%emt 0:00:30]} d5 {[%emt 0:00:30]} 3. Bd3 {[%emt 0:00:00]} c5 {[%emt 0:00:00]} 4. exd5 {[%emt 0:00:00]} Qxd5 {[%emt 0:01:00]} 5. Nc3 {[%emt 0:00:00]} Qd7 {[%emt 0:12:30]} 6. Bf4 {[%emt 0:15:00]} a6 {[%emt 0:05:30]} 7. d5 {[%emt 0:11:30]} Nf6 {[%emt 0:23:30]} 8. dxe6 {[%emt 0:10:30]} Qxe6+ {[%emt 0:00:00]} 9. Qe2 {[%emt 0:03:30]} Qxe2+ {[%emt 0:05:00]} 10. Ngxe2 {[%emt 0:02:30]} Be6 {[%emt 0:00:30]} 11. Ne4 {[%emt 0:03:30]} Nbd7 {[%emt 0:05:30]} 12. N2c3 {[%emt 0:05:30]} h6 {[%emt 0:19:30]} 13. O-O-O {[%emt 0:06:30]} O-O-O {[%emt 0:05:40]} 14. Rhe1 {[%emt 0:08:30]} Nb6 {[%emt 0:04:33]} 15. Nxf6 {[%emt 0:09:30]} gxf6 {[%emt 0:00:05]} 16. Ne4 {[%emt 0:00:30]} Nd5 {[%emt 0:03:57]} 17. Bd2 {[%emt 0:02:28]} Nb4 {[%emt 0:04:18]} 18. Bxb4 {[%emt 0:09:18]} cxb4 {[%emt 0:00:02]} 19. Nxf6 {[%emt 0:04:13]} a5 {[%emt 0:00:55]} 20. Bb5 {[%emt 0:03:08]} Be7 {[%emt 0:02:04]} 21. Ne4 {[%emt 0:00:46]} Kc7 {[%emt 0:00:38]} 22. f4 {[%emt 0:01:00]} Rxd1+ {[%emt 0:02:50]} 23. Rxd1 {[%emt 0:00:09]} Rg8 {[%emt 0:00:55]} 24. g3 {[%emt 0:01:04]} h5 {[%emt 0:00:10]} 25. Rd2 {[%emt 0:00:54]} h4 {[%emt 0:00:48]} 26. Rd3 {[%emt 0:01:14]} f5 {[%emt 0:01:06]} 27. Nd2 {[%emt 0:00:23]} Bc5 {[%emt 0:00:36]} 28. Nc4 {[%emt 0:00:39]} hxg3 {[%emt 0:00:56]} 29. hxg3 {[%emt 0:00:05]} b6 {[%emt 0:00:09]} 30. c3 {[%emt 0:00:54]} bxc3 {[%emt 0:00:54]} 31. Rxc3 {[%emt 0:00:05]} Rh8 {[%emt 0:00:00]} 32. Rd3 {[%emt 0:01:15]} Rh1+ {[%emt 0:00:22]} 33. Kc2 {[%emt 0:00:30]} Rh2+ {[%emt 0:00:30]} 34. Kc1 {[%emt 0:00:30]} Rg2 {[%emt 0:00:34]} 35. a3 {[%emt 0:00:14]} Rg1+ {[%emt 0:00:47]} 36. Kc2 {[%emt 0:00:42]} Rg2+ {[%emt 0:00:30]} 37. Kc1 {[%emt 0:00:00]} Bf2 {[%emt 0:00:08]} 38. Rc3 {[%emt 0:00:54]} Rxg3 {[%emt 0:00:37]} 39. Ne3+ {[%emt 0:00:30]} Kb7 {[%emt 0:00:51]} 40. Bc6+ {[%emt 0:00:00]} Ka6 {[%emt 0:00:00]} 41. Kd2 $11 {[%emt 0:09:35]} Rg1 {[%emt 0:03:35]} 42. Ke2 {[%emt 0:02:30]} Bh4 {[%emt 0:00:30]} 43. Nd5 {[%emt 0:08:52]} Rg2+ {[%emt 0:09:57]} 44. Ke3 {[%emt 0:02:05]} Bxd5 {[%emt 0:08:51]} 45. Bxd5 {[%emt 0:00:30]} Rxb2 {[%emt 0:00:00]} 46. Be6 {[%emt 0:00:00]} a4 {[%emt 0:04:35]} 47. Bxf5 {[%emt 0:06:27]} Be7 {[%emt 0:02:32]} 48. Bd3+ {[%emt 0:01:38]} Ka5 {[%emt 0:00:50]} 49. f5 {[%emt 0:02:36]} Ra2 {[%emt 0:01:34]} 50. Rc7 {[%emt 0:01:00]} Bg5+ {[%emt 0:02:20]} 51. Kd4 {[%emt 0:00:47]} Rxa3 {[%emt 0:00:26]} 52. Ra7+ {[%emt 0:00:18]} Kb4 {[%emt 0:00:34]} 53. Rb7 {[%emt 0:00:43]} Bf6+ {[%emt 0:00:11]} 54. Ke4 {[%emt 0:00:00]} Kc5 {[%emt 0:01:19]} 55. Rf7 {[%emt 0:00:16]} Bd8 {[%emt 0:00:42]} 56. Rd7 {[%emt 0:00:30]} Bh4 {[%emt 0:00:22]} 57. Rh7 {[%emt 0:00:20]} Bf6 {[%emt 0:00:44]} 58. Rf7 {[%emt 0:00:05]} Bd8 {[%emt 0:00:19]} 59. Rd7 {[%emt 0:01:12]} Bh4 {[%emt 0:00:30]} 60. Rh7 {[%emt 0:00:00]} Bf6 {[%emt 0:00:38]} 61. Rf7 {[%emt 0:00:00]} 1/2-1/2

[Event "World Junior U20 Girls 2018"]
[Site "Gebze"]
[Date "2018.09.06"]
[Round "2"]
[White "Meenal Gupta"]
[Black "Georgescu, Lena"]
[Result "0-1"]
[ECO "B40"]
[WhiteElo "1963"]
[BlackElo "2195"]
[Annotator "NA"]
[PlyCount "68"]
[EventDate "2018.09.05"]
[EventType "swiss"]
[EventCountry "TUR"]
[SourceTitle "playchess.com"]
[Source "ChessBase"]
[SourceQuality "1"]
[TimeControl "40/5400+30:1800+30"]

1. e4 {[%emt 0:00:30]} c5 {[%emt 0:00:30]} 2. Nf3 {[%emt 0:00:30]} e6 {[%emt 0:00:30]} 3. d4 {[%emt 0:00:30]} cxd4 {[%emt 0:00:00]} 4. Nxd4 {[%emt 0:00:00]} Nc6 {[%emt 0:00:00]} 5. Nxc6 {[%emt 0:00:00]} bxc6 {[%emt 0:00:00]} 6. Bd3 {[%emt 0:00:30]} Nf6 {[%emt 0:00:00]} 7. O-O {[%emt 0:01:30]} d5 {[%emt 0:01:30]} 8. Nd2 {[%emt 0:00:30]} Be7 {[%emt 0:00:30]} 9. Qe2 {[%emt 0:00:30]} O-O {[%emt 0:00:30]} 10. b3 {[%emt 0:05:30]} a5 {[%emt 0:02:30]} 11. Bb2 {[%emt 0:06:30]} a4 {[%emt 0:01:30]} 12. c4 {[%emt 0:03:30]} Bb7 {[%emt 0:14:30]} 13. Rfd1 {[%emt 0:12:30]} Qb6 {[%emt 0:03:30]} 14. Rab1 {[%emt 0:19:30]} axb3 {[%emt 0:03:30]} 15. axb3 {[%emt 0:00:00]} Ra2 {[%emt 0:07:30]} 16. e5 {[%emt 0:01:00]} Nd7 {[%emt 0:02:30]} 17. Qh5 {[%emt 0:00:30]} g6 {[%emt 0:02:30]} 18. Qh6 {[%emt 0:00:30]} Rxb2 {[%emt 0:09:30]} 19. Rxb2 {[%emt 0:01:30]} Qd4 {[%emt 0:00:30]} 20. Rbb1 {[%emt 0:06:30]} Qxd3 {[%emt 0:01:30]} 21. Nf3 {[%emt 0:00:30]} Qf5 {[%emt 0:02:30]} 22. cxd5 {[%emt 0:01:30]} cxd5 {[%emt 0:04:30]} 23. Qe3 {[%emt 0:02:30]} Bc5 {[%emt 0:04:30]} 24. Qe2 {[%emt 0:02:30]} d4 {[%emt 0:06:30]} 25. b4 {[%emt 0:02:30]} Bb6 {[%emt 0:02:30]} 26. Ra1 {[%emt 0:07:30]} Qf4 {[%emt 0:13:51]} 27. b5 {[%emt 0:03:30]} Rc8 {[%emt 0:01:22]} 28. Ra3 {[%emt 0:02:11]} Rc1 {[%emt 0:04:29]} 29. h3 {[%emt 0:00:39]} Rxd1+ {[%emt 0:01:12]} 30. Qxd1 {[%emt 0:00:02]} Nxe5 {[%emt 0:00:28]} 31. Nxe5 {[%emt 0:01:13]} Qxe5 {[%emt 0:00:05]} 32. Qb1 {[%emt 0:00:07]} Qd5 {[%emt 0:01:11]} 33. Rg3 {[%emt 0:00:08]} Bc7 {[%emt 0:00:53]} 34. Rf3 {[%emt 0:00:15]} Qg5 {[%emt 0:00:42]} 0-1

[Event "World Junior U20 Girls 2018"]
[Site "Gebze"]
[Date "2018.09.06"]
[Round "2"]
[White "Heydarova, Aytaj"]
[Black "Incecik, Seyma Zeynep"]
[Result "0-1"]
[ECO "A08"]
[WhiteElo "1948"]
[BlackElo "1716"]
[Annotator "NA"]
[PlyCount "120"]
[EventDate "2018.09.05"]
[EventType "swiss"]
[EventCountry "TUR"]
[SourceTitle "playchess.com"]
[Source "ChessBase"]
[SourceQuality "1"]
[TimeControl "40/5400+30:1800+30"]

1. Nf3 {[%emt 0:00:30]} d5 {[%emt 0:00:30]} 2. g3 {[%emt 0:00:00]} Nf6 {[%emt 0:00:30]} 3. Bg2 {[%emt 0:00:00]} g6 {[%emt 0:00:30]} 4. d3 {[%emt 0:00:30]} Bg7 {[%emt 0:00:00]} 5. O-O {[%emt 0:00:00]} O-O {[%emt 0:00:00]} 6. c3 {[%emt 0:00:00]} c5 {[%emt 0:00:30]} 7. Nbd2 {[%emt 0:00:00]} Nc6 {[%emt 0:00:00]} 8. e4 {[%emt 0:00:00]} e5 {[%emt 0:01:00]} 9. Re1 {[%emt 0:00:30]} Re8 {[%emt 0:00:00]} 10. Qc2 {[%emt 0:03:30] A08: King's Indian Attack} (10. exd5 Nxd5 11. Nc4 Nb6 12. Bg5 Qc7 13. Nxb6 axb6 14. d4 h6 15. Bd2 cxd4 16. cxd4 Bg4 17. d5 Nd4 18. Bc3 Qd7 19. Bxd4 exd4 20. Qb3 Bxf3 21. Bxf3 Qd6 22. a3 Rac8 23. Rad1 Bf6 {½-½ (23) David,A (2576)-Feller,S (2569) Schifflange 2017}) 10... h6 {[%emt 0:02:00]} 11. Nf1 {[%emt 0:00:30]} Be6 {[%emt 0:01:30]} 12. N3d2 {[%emt 0:10:30]} Qd7 {[%emt 0:09:30]} 13. Nb3 $146 {[%emt 0:10:30]} ({Predecessor:} 13. b3 Rad8 14. Bb2 d4 15. c4 {0-1 (43) Kirilov,I (1913)-Pniaczek,M (2085) Mamaia 2017}) 13... b6 {[%emt 0:02:30]} 14. f4 {[%emt 0:08:30]} Rad8 {[%emt 0:11:30]} 15. fxe5 {[%emt 0:10:30]} Nxe5 {[%emt 0:00:30]} 16. d4 {[%emt 0:01:30]} c4 {[%emt 0:10:30]} 17. dxe5 {[%emt 0:08:30]} cxb3 {[%emt 0:00:30]} 18. axb3 {[%emt 0:00:00]} Nxe4 {[%emt 0:01:30]} 19. Ne3 {[%emt 0:13:00]} Bxe5 {[%emt 0:21:30]} 20. Nxd5 {[%emt 0:08:30]} Bxd5 {[%emt 0:02:30]} 21. Bxe4 {[%emt 0:00:30]} Bg7 {[%emt 0:06:30]} 22. Bf4 {[%emt 0:03:53]} Bxe4 {[%emt 0:05:30]} 23. Rxe4 {[%emt 0:00:49]} g5 {[%emt 0:04:42]} 24. Be3 {[%emt 0:04:03]} Rxe4 {[%emt 0:01:30]} 25. Qxe4 {[%emt 0:00:08]} Re8 {[%emt 0:00:28]} 26. Qf3 {[%emt 0:02:13]} Qd3 {[%emt 0:02:25]} 27. Re1 {[%emt 0:02:39]} Qc2 {[%emt 0:03:24]} 28. Re2 {[%emt 0:04:48]} Qxb3 {[%emt 0:00:34]} 29. Rf2 {[%emt 0:01:00]} Qe6 {[%emt 0:01:42]} 30. Bd4 {[%emt 0:02:06]} Bxd4 {[%emt 0:02:39]} 31. cxd4 {[%emt 0:00:30]} Qe1+ {[%emt 0:00:00]} 32. Kg2 {[%emt 0:00:34]} Qe4 {[%emt 0:00:00]} 33. Rd2 {[%emt 0:01:12]} f5 {[%emt 0:03:48]} 34. h3 {[%emt 0:01:52]} Kf7 {[%emt 0:00:40]} 35. d5 {[%emt 0:00:52]} Qxf3+ {[%emt 0:00:56]} 36. Kxf3 {[%emt 0:00:07]} Rd8 {[%emt 0:01:03]} 37. Ke3 {[%emt 0:01:09]} Re8+ {[%emt 0:01:10]} 38. Kf3 {[%emt 0:00:50]} Rd8 {[%emt 0:04:13]} 39. Ke3 {[%emt 0:00:47]} Re8+ {[%emt 0:00:38]} 40. Kf3 {[%emt 0:00:59]} Ke7 {[%emt 0:00:00]} 41. Rc2 $17 {[%emt 0:06:29]} Rd8 {[%emt 0:14:19]} 42. Rc6 {[%emt 0:03:30]} Rd6 {[%emt 0:00:58]} 43. Rc7+ {[%emt 0:00:00]} Kf6 {[%emt 0:00:32]} 44. Rxa7 {[%emt 0:00:00]} Rxd5 {[%emt 0:00:09]} 45. Ra2 {[%emt 0:04:30]} Rd3+ {[%emt 0:00:30]} 46. Kf2 {[%emt 0:00:30]} Rb3 {[%emt 0:00:18]} 47. Kg2 {[%emt 0:02:27]} f4 {[%emt 0:01:35]} 48. gxf4 {[%emt 0:00:40]} gxf4 {[%emt 0:00:04]} 49. Ra4 {[%emt 0:00:33]} Kf5 {[%emt 0:00:43]} 50. Rd4 {[%emt 0:00:26]} Rxb2+ {[%emt 0:00:18]} 51. Kf3 {[%emt 0:00:43]} Rb3+ {[%emt 0:00:30]} 52. Kg2 {[%emt 0:00:00]} Rg3+ {[%emt 0:02:16]} 53. Kh2 {[%emt 0:00:10]} Rg6 {[%emt 0:00:00]} 54. Rb4 {[%emt 0:00:09]} f3 {[%emt 0:05:09]} 55. Rb5+ {[%emt 0:00:24]} Ke4 {[%emt 0:00:43]} 56. Rb4+ {[%emt 0:00:09]} Ke3 {[%emt 0:01:02]} 57. Rb3+ {[%emt 0:00:30]} Ke2 {[%emt 0:00:00]} 58. Rb2+ {[%emt 0:00:00]} Kd1 {[%emt 0:00:00]} 59. Rb1+ {[%emt 0:00:43]} Kc2 {[%emt 0:00:22]} 60. Rf1 {[%emt 0:00:06]} Rf6 {[%emt 0:00:15]} 0-1

[Event "World Junior U20 Girls 2018"]
[Site "Gebze"]
[Date "2018.09.06"]
[Round "2"]
[White "Hereklioglu, Sude"]
[Black "Potapova, Margarita"]
[Result "0-1"]
[ECO "D02"]
[WhiteElo "1930"]
[BlackElo "2277"]
[Annotator "NA"]
[PlyCount "90"]
[EventDate "2018.09.05"]
[EventType "swiss"]
[EventCountry "TUR"]
[SourceTitle "playchess.com"]
[Source "ChessBase"]
[SourceQuality "1"]
[TimeControl "40/5400+30:1800+30"]

1. d4 {[%emt 0:00:30]} Nf6 {[%emt 0:00:30]} 2. Nf3 {[%emt 0:00:30]} e6 {[%emt 0:00:30]} 3. g3 {[%emt 0:00:00]} d5 {[%emt 0:00:30]} 4. Bg2 {[%emt 0:00:00]} c5 {[%emt 0:01:30]} 5. e3 {[%emt 0:01:30]} Nc6 {[%emt 0:00:30]} 6. O-O {[%emt 0:00:30]} Be7 {[%emt 0:05:30]} 7. Nbd2 {[%emt 0:08:30]} O-O {[%emt 0:00:30]} 8. b3 {[%emt 0:04:30]} a5 {[%emt 0:06:30] D02: 1 d4 d5 2 Nf3 sidelines, including 2...Nf6 3 g3 and 2...Nf6 3 Bf4} 9. Bb2 {[%emt 0:06:30]} b6 {[%emt 0:07:30]} 10. c4 {[%emt 0:09:30]} Ba6 {[%emt 0:06:30]} 11. Re1 $146 {[%emt 0:07:30]} ({Predecessor:} 11. Ne5 Rc8 12. Nxc6 Rxc6 13. Re1 Rc8 14. Rc1 cxd4 15. Bxd4 Bb4 16. Bf1 dxc4 17. bxc4 {0-1 (44) Boyle,C-Bryson,D (2310) Clarkston 1987}) 11... Rc8 {[%emt 0:04:30]} 12. Ne5 {[%emt 0:05:30]} Bb7 {[%emt 0:10:30]} 13. f4 {[%emt 0:16:30]} cxd4 {[%emt 0:08:30]} 14. exd4 {[%emt 0:03:30]} Ba8 {[%emt 0:00:30]} 15. Rc1 {[%emt 0:07:30]} dxc4 {[%emt 0:03:30]} 16. Nxc6 {[%emt 0:00:30]} Bxc6 {[%emt 0:00:30]} 17. bxc4 {[%emt 0:00:30]} Bxg2 {[%emt 0:06:30]} 18. Kxg2 {[%emt 0:00:30]} Qd7 {[%emt 0:00:30]} 19. Ne4 {[%emt 0:06:19]} Nxe4 {[%emt 0:02:30]} 20. Rxe4 {[%emt 0:00:17]} Rxc4 {[%emt 0:09:30]} 21. Rxc4 {[%emt 0:10:37]} Qd5 {[%emt 0:00:30]} 22. Qe2 {[%emt 0:00:07]} f5 {[%emt 0:00:30]} 23. Rc7 {[%emt 0:04:39]} Bf6 {[%emt 0:03:30]} 24. Kf3 {[%emt 0:03:37]} fxe4+ {[%emt 0:00:30]} 25. Qxe4 {[%emt 0:00:03]} Qxa2 {[%emt 0:00:40]} 26. Bc3 {[%emt 0:00:23]} b5 {[%emt 0:06:33]} 27. Qe2 {[%emt 0:02:17]} Qb3 {[%emt 0:03:37]} 28. Qe3 {[%emt 0:00:28]} b4 {[%emt 0:00:35]} 29. Be1 {[%emt 0:00:45]} Qd5+ {[%emt 0:01:15]} 30. Qe4 {[%emt 0:00:15]} Rd8 {[%emt 0:04:43]} 31. Qxd5 {[%emt 0:00:58]} Rxd5 {[%emt 0:00:19]} 32. Rc6 {[%emt 0:00:17]} Kf7 {[%emt 0:00:53]} 33. Rc7+ {[%emt 0:00:07]} Ke8 {[%emt 0:00:00]} 34. Rb7 {[%emt 0:00:27]} Bxd4 {[%emt 0:00:34]} 35. h4 {[%emt 0:00:40]} h5 {[%emt 0:00:49]} 36. g4 {[%emt 0:00:51]} hxg4+ {[%emt 0:00:33]} 37. Kxg4 {[%emt 0:00:03]} Bf6 {[%emt 0:00:20]} 38. Kf3 {[%emt 0:00:58]} Rd1 {[%emt 0:01:49]} 39. Ke2 {[%emt 0:00:30]} Rd5 {[%emt 0:01:15]} 40. Kf3 {[%emt 0:00:00]} Rd3+ {[%emt 0:00:00]} 41. Ke4 $19 {[%emt 0:08:52]} Ra3 {[%emt 0:05:35]} 42. Bf2 {[%emt 0:05:42]} b3 {[%emt 0:01:30]} 43. Bc5 {[%emt 0:01:09]} Ra4+ {[%emt 0:00:00]} 44. Kd3 {[%emt 0:00:10]} b2 {[%emt 0:00:00]} 45. Kc2 {[%emt 0:00:54]} Rc4+ {[%emt 0:00:30]} 0-1

[Event "World Junior U20 Girls 2018"]
[Site "Gebze"]
[Date "2018.09.06"]
[Round "2"]
[White "Koo, Wei Xin Rosamund"]
[Black "Hojjatova, Aydan"]
[Result "0-1"]
[ECO "E04"]
[WhiteElo "1918"]
[BlackElo "2356"]
[Annotator "NA"]
[PlyCount "76"]
[EventDate "2018.09.05"]
[EventType "swiss"]
[EventCountry "TUR"]
[SourceTitle "playchess.com"]
[Source "ChessBase"]
[SourceQuality "1"]
[TimeControl "40/5400+30:1800+30"]

1. d4 {[%emt 0:00:30]} e6 {[%emt 0:00:30]} 2. c4 {[%emt 0:00:30]} Nf6 {[%emt 0:00:00]} 3. Nf3 {[%emt 0:00:30]} d5 {[%emt 0:00:00]} 4. g3 {[%emt 0:00:00]} dxc4 {[%emt 0:00:30]} 5. Bg2 {[%emt 0:00:00]} a6 {[%emt 0:00:00]} 6. O-O {[%emt 0:02:30]} Nc6 {[%emt 0:01:00]} 7. e3 {[%emt 0:06:30]} Rb8 {[%emt 0:01:30]} 8. Qe2 {[%emt 0:15:30]} b5 {[%emt 0:01:30]} 9. Rd1 {[%emt 0:00:30]} Be7 {[%emt 0:06:30]} 10. Ne5 {[%emt 0:03:30]} Nxe5 {[%emt 0:01:30]} 11. dxe5 {[%emt 0:00:30]} Nd7 {[%emt 0:00:00]} 12. Nc3 {[%emt 0:08:30]} O-O {[%emt 0:07:00]} 13. a4 {[%emt 0:05:30]} Bb7 {[%emt 0:05:30]} 14. axb5 {[%emt 0:12:30]} Bxg2 {[%emt 0:00:30]} 15. Kxg2 {[%emt 0:00:30]} axb5 {[%emt 0:00:00]} 16. Ra5 {[%emt 0:13:30]} Qc8 {[%emt 0:04:00]} 17. Rxb5 {[%emt 0:00:30]} Rxb5 {[%emt 0:00:30]} 18. Nxb5 {[%emt 0:00:30]} Qb7+ {[%emt 0:00:30]} 19. e4 {[%emt 0:05:30]} Qxb5 {[%emt 0:00:30]} 20. b3 {[%emt 0:00:30]} Nxe5 {[%emt 0:02:30]} 21. f4 {[%emt 0:01:30]} Nd3 {[%emt 0:01:30]} 22. bxc4 {[%emt 0:02:08]} Nxc1 {[%emt 0:00:30]} 23. Rxc1 {[%emt 0:01:00]} Qb4 {[%emt 0:00:30]} 24. Rc2 {[%emt 0:00:00]} Rd8 {[%emt 0:00:30]} 25. h4 {[%emt 0:01:45]} Bc5 {[%emt 0:00:30]} 26. h5 {[%emt 0:01:03]} Qb1 {[%emt 0:00:30]} 27. e5 {[%emt 0:02:23]} Qg1+ {[%emt 0:01:30]} 28. Kf3 {[%emt 0:00:28]} Qh1+ {[%emt 0:01:30]} 29. Kg4 {[%emt 0:00:30]} g6 {[%emt 0:00:00]} 30. Qh2 {[%emt 0:00:00]} Qe4 {[%emt 0:00:00]} 31. hxg6 {[%emt 0:01:43]} hxg6 {[%emt 0:01:30]} 32. Qe2 {[%emt 0:01:00]} Qf5+ {[%emt 0:01:30]} 33. Kf3 {[%emt 0:00:30]} Rd3+ {[%emt 0:00:00]} 34. Kg2 {[%emt 0:00:19]} Re3 {[%emt 0:00:00]} 35. Qd2 {[%emt 0:00:08]} Qg4 {[%emt 0:02:30]} 36. Qd8+ {[%emt 0:03:15]} Bf8 {[%emt 0:00:30]} 37. Qh4 {[%emt 0:00:14]} Qf3+ {[%emt 0:00:00]} 38. Kh3 {[%emt 0:00:10]} Qf1+ {[%emt 0:00:00]} 0-1

[Event "World Junior U20 Girls 2018"]
[Site "Gebze"]
[Date "2018.09.06"]
[Round "2"]
[White "Doroy Allaney Jia G"]
[Black "Altantuya, Boldbaatar"]
[Result "0-1"]
[ECO "A14"]
[WhiteElo "1914"]
[BlackElo "2210"]
[Annotator "NA"]
[PlyCount "62"]
[EventDate "2018.09.05"]
[EventType "swiss"]
[EventCountry "TUR"]
[SourceTitle "playchess.com"]
[Source "ChessBase"]
[SourceQuality "1"]
[TimeControl "40/5400+30:1800+30"]

1. c4 {[%emt 0:00:30]} Nf6 {[%emt 0:00:30]} 2. g3 {[%emt 0:00:00]} e6 {[%emt 0:00:30]} 3. Bg2 {[%emt 0:00:00]} d5 {[%emt 0:00:30]} 4. Nf3 {[%emt 0:00:30]} Be7 {[%emt 0:00:00]} 5. O-O {[%emt 0:00:30]} O-O {[%emt 0:00:00]} 6. Qc2 {[%emt 0:00:30]} c5 {[%emt 0:00:30]} 7. cxd5 {[%emt 0:05:30]} exd5 {[%emt 0:03:30]} 8. d4 {[%emt 0:00:30]} cxd4 {[%emt 0:04:30]} 9. Nxd4 {[%emt 0:00:00]} Qb6 {[%emt 0:01:30]} 10. Nb3 {[%emt 0:15:00]} Nc6 {[%emt 0:02:30]} 11. Nc3 {[%emt 0:00:30]} Be6 {[%emt 0:06:30]} 12. Bg5 {[%emt 0:12:30]} Rac8 {[%emt 0:16:30]} 13. e3 {[%emt 0:09:30]} Rfd8 {[%emt 0:04:30]} 14. Rfd1 {[%emt 0:13:30]} Bg4 {[%emt 0:19:30]} 15. Rd2 {[%emt 0:01:30]} Nb4 {[%emt 0:02:30]} 16. Qb1 {[%emt 0:02:30]} Bh5 {[%emt 0:14:46]} 17. Bxf6 {[%emt 0:10:30]} Bxf6 {[%emt 0:00:50]} 18. Nxd5 {[%emt 0:03:30]} Nxd5 {[%emt 0:01:30]} 19. Bxd5 {[%emt 0:03:18]} a5 {[%emt 0:06:16]} 20. Qe4 {[%emt 0:08:26]} Bg6 {[%emt 0:03:02]} 21. Qa4 {[%emt 0:00:08]} Bc2 {[%emt 0:04:23]} 22. Qa3 {[%emt 0:03:18]} a4 {[%emt 0:05:46]} 23. Qxa4 {[%emt 0:03:02]} Bxb2 {[%emt 0:00:30]} 24. Rf1 {[%emt 0:00:02]} Bf6 {[%emt 0:00:09]} 25. Qf4 {[%emt 0:02:19]} Bg6 {[%emt 0:01:10]} 26. e4 {[%emt 0:00:52]} h6 {[%emt 0:00:24]} 27. h4 {[%emt 0:00:38]} Re8 {[%emt 0:00:41]} 28. Qf3 {[%emt 0:00:30]} Qb4 {[%emt 0:00:24]} 29. Qg4 {[%emt 0:03:55]} Bxe4 {[%emt 0:00:39]} 30. Re1 {[%emt 0:00:28]} Bxd5 {[%emt 0:00:25]} 31. Rxe8+ {[%emt 0:01:34]} Rxe8 {[%emt 0:00:30]} 0-1

[Event "World Junior U20 Girls 2018"]
[Site "Gebze"]
[Date "2018.09.06"]
[Round "2"]
[White "Aksoy, Ayca"]
[Black "Malatsilava, Volha"]
[Result "1-0"]
[ECO "D00"]
[WhiteElo "1898"]
[BlackElo "2040"]
[Annotator "NA"]
[PlyCount "83"]
[EventDate "2018.09.05"]
[EventType "swiss"]
[EventCountry "TUR"]
[SourceTitle "playchess.com"]
[Source "ChessBase"]
[SourceQuality "1"]
[TimeControl "40/5400+30:1800+30"]

1. d4 {[%emt 0:00:30]} Nf6 {[%emt 0:00:30]} 2. Bg5 {[%emt 0:00:00]} d5 {[%emt 0:04:30]} 3. Bxf6 {[%emt 0:05:00]} exf6 {[%emt 0:00:00]} 4. e3 {[%emt 0:00:30]} Bd6 {[%emt 0:00:00]} 5. Bd3 {[%emt 0:01:30]} f5 {[%emt 0:02:30]} 6. Nf3 {[%emt 0:04:30]} O-O {[%emt 0:01:30]} 7. O-O {[%emt 0:00:30]} c6 {[%emt 0:01:30]} 8. c4 {[%emt 0:01:30]} dxc4 {[%emt 0:04:30]} 9. Bxc4 {[%emt 0:00:30]} Qc7 {[%emt 0:00:30]} 10. Nc3 {[%emt 0:01:30]} Nd7 {[%emt 0:03:30]} 11. Rc1 {[%emt 0:02:30]} Nb6 {[%emt 0:01:30]} 12. Bd3 {[%emt 0:01:30]} Qe7 {[%emt 0:00:30]} 13. Qc2 {[%emt 0:02:30]} g6 {[%emt 0:01:30]} 14. Rfe1 {[%emt 0:06:30]} Nd5 {[%emt 0:06:30]} 15. Nxd5 {[%emt 0:06:30]} cxd5 {[%emt 0:00:30]} 16. g3 {[%emt 0:00:30]} Be6 {[%emt 0:04:30]} 17. a3 {[%emt 0:05:30]} Rac8 {[%emt 0:00:30]} 18. Qb1 {[%emt 0:01:30]} Rc7 {[%emt 0:01:30]} 19. Rxc7 {[%emt 0:07:30]} Qxc7 {[%emt 0:00:30]} 20. Rc1 {[%emt 0:00:30]} Qb6 {[%emt 0:00:00]} 21. Qc2 {[%emt 0:01:30]} a5 {[%emt 0:05:00]} 22. Qd2 {[%emt 0:02:30]} Re8 {[%emt 0:03:30]} 23. Rc3 {[%emt 0:01:30]} Bd7 {[%emt 0:02:30]} 24. Qc2 {[%emt 0:01:30]} a4 {[%emt 0:01:30]} 25. Kg2 {[%emt 0:03:30]} Qa5 {[%emt 0:00:30]} 26. h4 {[%emt 0:08:30]} h5 {[%emt 0:02:30]} 27. Ng5 {[%emt 0:00:30]} b5 {[%emt 0:01:30]} 28. b4 {[%emt 0:06:30]} axb3 {[%emt 0:00:30]} 29. Qxb3 {[%emt 0:00:30]} Rf8 {[%emt 0:06:30]} 30. Be2 {[%emt 0:02:30]} b4 {[%emt 0:20:30]} 31. axb4 {[%emt 0:00:30]} Bxb4 {[%emt 0:00:00]} 32. Rc1 {[%emt 0:01:30]} Ba4 {[%emt 0:06:16]} 33. Qa2 {[%emt 0:01:30]} Rd8 {[%emt 0:04:48]} 34. Bf3 {[%emt 0:01:30]} Qa8 {[%emt 0:08:04]} 35. Rc7 {[%emt 0:02:30]} f6 {[%emt 0:05:25]} 36. Nf7 {[%emt 0:04:15]} Bd1 {[%emt 0:01:14]} 37. Ra7 {[%emt 0:03:19]} Bxf3+ {[%emt 0:00:38]} 38. Kxf3 {[%emt 0:00:30]} Qc8 {[%emt 0:00:17]} 39. Nxd8 {[%emt 0:01:29]} f4 {[%emt 0:00:06]} 40. Qxd5+ {[%emt 0:00:19]} Kh8 {[%emt 0:00:00]} 41. Nf7+ {[%emt 0:00:08]} Kg7 {[%emt 0:00:42]} 42. Ng5+ {[%emt 0:00:30]} 1-0